bitfinex-derivatives/quotes_ETHF0:USTF0_20210702
["timestamp","ask_amount","ask_price","bid_price","bid_amount"]
[1625236119729,14.6679,2091.3,2089.5,17.382668]
[1625236120234,14.6679,2091.3,2090.0,2.20527]
[1625236120332,2.20527,2090.1,2090.0,2.20527]
[1625236121237,14.6679,2091.3,2090.0,2.20527]
[1625236121337,14.6679,2091.3,2090.0,4.88207]
[1625236121540,14.6679,2091.3,2090.1,17.4935]
[1625236121838,14.6679,2091.3,2090.0,4.88207]
[1625236122239,4.41054,2090.1,2090.0,4.88207]
[1625236122341,4.41054,2090.1,2090.0,2.20527]
[1625236123743,4.41054,2090.1,2090.0,19.719664]
[1625236124041,4.41054,2090.1,2090.0,2.20527]
[1625236125346,4.41054,2090.1,2089.4,2.20527]
[1625236125993,4.41054,2090.1,2089.5,17.474079]
[1625236126303,4.41054,2090.1,2090.0,2.20527]
[1625236126506,4.41054,2090.1,2089.4,2.20527]
[1625236126605,7.71564,2090.1,2087.8,52.0329]
[1625236127355,7.71564,2090.1,2087.9,17.491517]
[1625236128323,2.20527,2089.1,2089.0,2.20527]
[1625236128422,2.20527,2089.1,2089.0,4.62087]
[1625236128674,2.20527,2089.1,2089.0,21.935284]
[1625236129181,14.6679,2091.3,2089.0,21.935284]
[1625236130081,19.6679,2091.3,2089.0,2.4156]
[1625236130180,19.6679,2091.3,2088.8,2.20527]
[1625236130281,22.9108,2091.3,2088.8,2.20527]
[1625236130381,4.41054,2088.9,2088.8,2.20527]
[1625236130483,2.9543,2090.5,2088.8,2.20527]
[1625236131735,22.9108,2091.3,2088.8,2.20527]
[1625236132388,2.20527,2089.1,2088.8,2.20527]
[1625236134341,2.20527,2088.9,2088.8,2.20527]
[1625236136246,2.20527,2088.9,2088.8,19.468138]
[1625236137097,2.20527,2088.9,2088.8,2.20527]
[1625236138852,1.0,2090.6,2088.8,2.20527]
[1625236138956,15.8622,2091.2,2088.8,5.19217]
[1625236139154,8.0,2091.8,2088.8,22.597462]
[1625236139254,8.967,2091.6,2088.8,22.597462]
[1625236139406,22.6679,2091.3,2088.8,22.597462]
[1625236139602,22.6679,2091.3,2088.8,5.19217]
[1625236139704,14.6679,2091.3,2088.8,5.19217]
[1625236139805,5.0,2091.2,2088.8,5.19217]
[1625236140005,14.6679,2091.3,2088.8,5.19217]
[1625236140456,2.20527,2089.4,2089.3,2.20527]
[1625236142110,2.20527,2089.4,2088.8,2.20527]
[1625236142415,2.20527,2088.9,2088.8,2.20527]
[1625236144471,4.41054,2088.9,2088.8,2.20527]
[1625236144820,1.0,2090.6,2088.8,2.20527]
[1625236144969,1.0,2091.1,2088.8,4.56087]
[1625236145072,5.0,2091.2,2088.8,4.56087]
[1625236145318,5.0,2091.2,2088.9,17.463833]
[1625236146430,4.41054,2089.0,2088.9,17.463833]
[1625236148500,4.41054,2089.0,2088.9,19.669103]
[1625236149402,4.41054,2089.0,2088.9,17.463833]
[1625236150457,4.41054,2089.0,2088.9,19.669103]
[1625236151262,4.41054,2089.0,2088.9,2.20527]
[1625236151762,7.11444,2089.0,2088.8,2.20527]
[1625236152466,7.11444,2089.0,2087.8,52.0329]
[1625236152467,7.11444,2089.0,2088.5,2.20527]
[1625236152865,2.7039,2089.0,2088.5,2.20527]
[1625236152965,1.0,2090.6,2088.5,2.20527]
[1625236153066,14.6679,2091.3,2088.5,5.52767]
[1625236153164,14.6679,2091.3,2088.6,17.244626]
[1625236153563,14.6679,2091.3,2088.6,22.244626]
[1625236153662,1.0,2091.2,2088.6,22.244626]
[1625236153766,1.0,2091.2,2090.0,41.8414]
[1625236153866,14.6679,2091.3,2090.0,41.8414]
[1625236154465,4.41054,2090.1,2090.0,41.8414]
[1625236154966,4.41054,2090.1,2089.7,2.20527]
[1625236156321,4.41054,2090.1,2087.9,1.0]
[1625236156418,4.41054,2090.1,2087.8,52.0329]
[1625236156517,2.20527,2089.0,2088.6,2.20527]
[1625236157380,2.20527,2089.2,2088.6,2.20527]
[1625236158539,2.20527,2089.2,2089.0,2.20527]
[1625236158644,2.20527,2089.2,2089.0,4.72577]
[1625236160495,2.20527,2089.2,2089.1,2.20527]
[1625236161095,2.20527,2089.6,2089.1,2.20527]
[1625236162349,2.20527,2089.6,2089.1,5.75507]
[1625236162498,2.20527,2089.6,2089.5,2.20527]
[1625236163050,2.20527,2089.9,2089.5,2.20527]
[1625236164101,2.20527,2089.9,2089.5,50.44467]
[1625236164503,2.20527,2089.9,2089.5,52.64994]
[1625236165005,2.20527,2089.9,2089.5,4.41054]
[1625236166509,2.20527,2089.6,2089.5,4.41054]
[1625236167912,2.20527,2089.6,2089.5,62.84924]
[1625236173723,2.20527,2089.9,2089.5,62.84924]
[1625236173823,1.0,2090.8,2089.5,62.84924]
[1625236173926,13.98723721,2091.3,2089.5,62.84924]
[1625236174237,13.98723721,2091.3,2089.6,17.501536]
[1625236174636,2.20527,2091.2,2091.1,2.20527]
[1625236177302,2.20527,2091.2,2091.1,42.95677]
[1625236178154,2.20527,2091.2,2091.1,40.7515]
[1625236179663,2.20527,2091.2,2090.8,2.20527]
[1625236179866,4.74767,2091.2,2090.8,2.20527]
[1625236180670,2.20527,2090.9,2090.8,2.20527]
[1625236181770,2.20527,2090.9,2089.5,58.4387]
[1625236181870,5.93257,2090.9,2089.5,58.4387]
[1625236182674,2.20527,2089.7,2089.5,60.64397]
[1625236183723,2.20527,2089.7,2089.6,17.261648]
[1625236184427,1.0,2090.8,2089.6,17.261648]
[1625236184528,0.9521,2091.9,2089.6,17.261648]
[1625236184632,2.20527,2090.4,2090.1,2.20527]
[1625236186034,2.20527,2090.4,2090.2,17.302262]
[1625236186384,2.20527,2090.6,2090.2,17.302262]
[1625236186684,2.20527,2090.6,2090.5,2.20527]
[1625236187034,2.20527,2091.0,2090.5,19.602013]
[1625236188694,2.20527,2091.0,2090.9,2.20527]
[1625236191650,2.20527,2091.0,2090.5,2.20527]
[1625236192400,2.20527,2091.0,2090.6,17.309443]
[1625236192652,2.20527,2091.0,2090.9,2.20527]
[1625236193053,2.20527,2091.0,2090.9,19.559978]
[1625236194909,16.19250721,2091.3,2091.2,58.9238]
[1625236195008,2.20527,2091.3,2091.2,58.9238]
[1625236196966,2.20527,2091.3,2090.9,4.41054]
[1625236197163,2.20527,2091.3,2089.9,3.46707684]
[1625236197164,2.20527,2091.3,2090.0,1.86879986]
[1625236197763,2.20527,2091.3,2090.1,17.256766]
[1625236197914,2.20527,2091.3,2090.1,17.96400529]
[1625236198214,2.20527,2091.3,2090.1,0.70723929]
[1625236198319,2.20527,2091.3,2090.0,1.86753182]
[1625236198414,2.20527,2091.3,2089.9,19.9406406]
[1625236198415,2.20527,2091.3,2089.9,19.14089987]
[1625236198515,2.20527,2091.3,2090.2,17.258792]
[1625236198716,2.20527,2090.9,2090.4,2.20527]
[1625236198918,2.20527,2091.3,2090.4,2.20527]
[1625236199017,2.20527,2091.3,2090.4,5.86997]
[1625236199116,2.20527,2091.3,2090.5,17.438333]
[1625236200566,2.20527,2091.3,2090.5,22.438333]
[1625236200769,2.20527,2091.3,2091.2,4.41054]
[1625236200869,2.20527,2091.3,2091.2,55.83884]
[1625236202022,2.20527,2091.3,2091.2,4.41054]
[1625236204726,2.20527,2091.3,2091.2,21.904493]
[1625236205977,2.20527,2091.7,2091.2,21.904493]
[1625236206080,16.872,2092.7,2091.2,21.904493]
[1625236206178,15.872,2092.7,2091.2,21.904493]
[1625236206841,2.20527,2092.3,2092.0,2.20527]
[1625236206941,2.20527,2092.3,2092.0,4.54687]
[1625236207043,4.759,2093.3,2092.0,4.54687]
[1625236207143,1.96144293,2093.6,2092.0,4.54687]
[1625236207394,1.96144293,2093.6,2092.1,5.0]
[1625236207643,1.9590992,2094.4,2092.1,22.348123]
[1625236208002,15.8198,2094.6,2092.9,49.3158]
[1625236208152,15.8198,2094.6,2092.9,52.6814]
[1625236208252,15.8198,2094.6,2093.0,17.346462]
[1625236208406,15.8198,2094.6,2093.1,5.0]
[1625236208754,15.8198,2094.6,2093.2,17.306154]
[1625236208855,2.20527,2094.5,2094.4,2.20527]
[1625236208958,2.20527,2094.5,2094.4,5.46057]
[1625236210830,4.41054,2094.5,2094.4,5.46057]
[1625236211780,4.41054,2094.5,2093.0,1.0]
[1625236211881,7.99784,2094.5,2092.5,5.0]
[1625236211991,1.0,2094.4,2092.1,1.0]
[1625236212080,1.0,2094.4,2092.0,0.9681]
[1625236212331,1.0,2094.4,2091.7,1.84150835]
[1625236212432,1.0,2094.4,2091.6,1.83961817]
[1625236212531,1.0,2094.4,2092.1,17.414753]
[1625236212631,1.0,2094.4,2092.1,20.647753]
[1625236212731,1.0,2094.4,2092.2,5.0]
[1625236212830,2.20527,2094.0,2092.2,5.0]
[1625236213039,2.20527,2094.0,2092.3,17.356189]
[1625236213139,2.20527,2094.0,2092.4,5.0]
[1625236213242,2.20527,2094.0,2092.7,47.5675]
[1625236213340,2.20527,2094.0,2092.7,55.997]
[1625236213540,2.20527,2094.0,2092.8,17.469996]
[1625236213690,15.8198,2094.6,2092.9,5.0]
[1625236213991,15.8198,2094.6,2093.0,17.484685]
[1625236214091,15.8198,2094.6,2093.1,5.0]
[1625236214443,15.8198,2094.6,2093.2,17.264315]
[1625236214546,15.8198,2094.6,2093.2,19.798715]
[1625236214695,15.8198,2094.6,2093.3,5.0]
[1625236214801,2.20527,2094.5,2094.4,2.20527]
[1625236214901,2.20527,2094.5,2094.4,5.51637]
[1625236215802,1.09973014,2095.4,2094.4,5.51637]
[1625236216052,1.09973014,2095.4,2094.4,22.801883]
[1625236216852,1.09973014,2095.4,2095.1,2.20527]
[1625236216951,1.09973014,2095.4,2095.1,5.22007]
[1625236217204,2.20527,2095.7,2095.1,5.22007]
[1625236217306,1.0,2096.9,2095.1,5.22007]
[1625236217507,1.0,2096.9,2095.2,5.0]
[1625236217807,1.0,2096.9,2095.2,22.227639]
[1625236217908,1.0,2096.9,2095.2,17.227639]
[1625236218460,14.8793,2097.0,2095.2,17.227639]
[1625236218558,14.8793,2097.0,2095.3,5.0]
[1625236218759,14.8793,2097.0,2095.7,1.15]
[1625236218860,14.8793,2097.0,2096.9,4.41054]
[1625236219008,2.20527,2098.0,2096.9,6.77374]
[1625236219108,2.20527,2098.0,2097.0,53.4741]
[1625236219208,15.6543,2098.6,2097.0,53.4741]
[1625236219359,1.93931804,2098.6,2097.0,53.4741]
[1625236219862,14.7474,2099.2,2097.0,53.4741]
[1625236219959,14.7474,2099.2,2097.1,17.27478]
[1625236220913,2.20527,2098.9,2098.8,2.20527]
[1625236221212,2.20527,2098.9,2098.6,2.20527]
[1625236221866,5.809,2100.0,2098.6,2.20527]
[1625236222066,15.1654,2100.8,2098.6,2.20527]
[1625236222166,2.87330272,2101.8,2098.6,2.20527]
[1625236222268,1.15230272,2101.8,2099.1,1.15]
[1625236222369,2.29759232,2101.9,2099.1,4.7825]
[1625236222467,23.759,2102.3,2099.2,5.0]
[1625236222570,19.0,2102.3,2099.2,5.0]
[1625236222666,19.0,2102.3,2099.2,22.247645]
[1625236222922,19.0,2102.3,2102.2,4.41054]
[1625236223019,18.9531,2102.3,2102.2,7.00834]
[1625236223368,18.9531,2102.3,2102.2,12.00834]
[1625236223469,17.7931,2102.3,2102.2,7.00834]
[1625236223580,13.2896,2102.3,2102.2,12.00834]
[1625236223683,5.49931831,2104.6,2102.2,29.254866]
[1625236223827,5.49931831,2104.6,2102.7,1.15]
[1625236223925,5.49931831,2104.6,2102.7,4.2659]
[1625236224039,5.49931831,2104.6,2102.8,5.0]
[1625236224132,1.0781668,2107.3,2102.8,22.269565]
[1625236224427,1.0781668,2107.3,2105.6,43.9566]
[1625236224575,1.0781668,2107.3,2105.6,46.692]
[1625236224675,1.0781668,2107.3,2105.7,17.256814]
[1625236224830,0.37269924,2107.2,2105.7,17.256814]
[1625236224931,2.20527,2107.1,2106.7,2.20527]
[1625236225126,2.20527,2107.1,2105.7,17.256814]
[1625236225230,2.20527,2107.1,2107.0,17.217335]
[1625236225427,1.0781668,2107.3,2107.0,17.217335]
[1625236225527,1.0781668,2107.3,2106.8,17.354822]
[1625236225629,1.0781668,2107.3,2106.3,2.508]
[1625236225729,1.0781668,2107.3,2106.4,22.318064]
[1625236225828,1.0781668,2107.3,2106.4,17.318064]
[1625236225929,1.0781668,2107.3,2107.1,17.209349]
[1625236226132,1.0781668,2107.3,2106.9,17.309388]
[1625236226231,1.0781668,2107.3,2106.8,3.4773]
[1625236226480,1.0781668,2107.3,2107.2,17.139179]
[1625236226834,1.0781668,2107.3,2106.9,18.471047]
[1625236226932,0.4354668,2107.3,2107.2,4.41054]
[1625236227032,6.68e-05,2107.3,2107.2,4.41054]
[1625236227183,3.25527,2110.0,2107.2,21.590164]
[1625236227286,3.25527,2110.0,2107.7,1.15]
[1625236227583,0.37231488,2109.9,2107.8,17.132381]
[1625236228083,0.37231488,2109.9,2107.3,17.228847]
[1625236228438,0.37231488,2109.9,2107.9,17.264473]
[1625236228733,0.37231488,2109.9,2107.5,3.2473]
[1625236228834,0.37231488,2109.9,2108.0,40.1547]
[1625236228936,2.20527,2109.0,2108.0,19.897678]
[1625236229285,2.20527,2109.0,2108.4,17.069459]
[1625236229385,1.05,2110.0,2108.4,17.069459]
[1625236229486,1.05,2110.0,2108.1,46.0157]
[1625236229634,0.37231811,2109.9,2108.1,46.0157]
[1625236229834,0.37231811,2109.9,2108.0,2.5798]
[1625236229937,0.37231811,2109.9,2105.6,42.83125914]
[1625236230035,1.05,2110.0,2105.6,42.83125914]
[1625236230936,2.20527,2108.7,2108.6,2.20527]
[1625236231048,2.20527,2108.7,2108.6,5.32637]
[1625236231589,2.20527,2108.7,2108.6,22.51981]
[1625236231941,2.20527,2108.7,2108.6,5.32637]
[1625236232041,7e-05,2108.7,2108.6,5.32637]
[1625236232393,1.05,2110.0,2108.6,5.32637]
[1625236232753,1.05,2110.0,2108.7,17.119513]
[1625236232992,2.20527,2108.8,2106.7,2.8443]
[1625236233093,4.95087,2108.8,2106.7,2.8443]
[1625236233305,3.3215,2108.8,2106.7,2.8443]
[1625236233747,3.3215,2108.8,2106.8,17.247487]
[1625236234146,3.3215,2108.8,2104.7,47.9057]
[1625236234752,3.3215,2108.8,2105.2,1.15]
[1625236234844,3.3215,2108.8,2105.2,4.4999]
[1625236234946,2.20527,2107.5,2107.4,2.20527]
[1625236235048,2.20527,2107.5,2105.3,17.281068]
[1625236235197,4.80137,2107.5,2105.3,17.281068]
[1625236235295,4.80137,2107.5,2105.2,3.3499]
[1625236235748,4.80137,2107.5,2105.3,17.20793]
[1625236236196,4.80137,2107.5,2102.2,5.0]
[1625236236296,4.80137,2107.5,2102.3,1.1]
[1625236236445,4.80137,2107.5,2102.2,5.0]
[1625236236748,4.80137,2107.5,2103.9,17.250959]
[1625236236948,4.80137,2107.5,2107.1,2.20527]
[1625236237059,4.80137,2107.5,2102.3,17.299587]
[1625236237060,4.80137,2107.5,2104.6,2.7415]
[1625236237817,4.80137,2107.5,2104.7,17.275138]
[1625236238120,4.80137,2107.5,2105.1,1.15]
[1625236238471,4.80137,2107.5,2105.2,17.30181]
[1625236238776,4.80137,2107.5,2104.6,2.7415]
[1625236238976,7.00664,2107.5,2106.6,2.20527]
[1625236239978,7.00664,2107.5,2106.4,2.20527]
[1625236240781,7.00664,2107.5,2102.6,14.8007]
[1625236240983,2.20527,2105.7,2105.5,2.20527]
[1625236241084,4.94437,2105.7,2105.5,2.20527]
[1625236241181,4.94437,2105.7,2105.3,2.20527]
[1625236241338,4.94437,2105.7,2102.6,14.8007]
[1625236241583,4.94437,2105.7,2097.0,53.4741]
[1625236241733,4.94437,2105.7,2101.8,68.6659]
[1625236241934,4.94437,2105.7,2102.7,17.258904]
[1625236242284,4.94437,2105.7,2102.3,1.15]
[1625236242434,4.94437,2105.7,2102.4,17.379265]
[1625236242537,4.94437,2105.7,2102.8,17.377697]
[1625236242885,4.94437,2105.7,2102.3,1.15]
[1625236242989,2.20527,2104.4,2104.2,2.20527]
[1625236244495,2.20527,2104.4,2104.0,2.20527]
[1625236245393,2.7391,2105.7,2104.0,2.20527]
[1625236246046,5.0,2106.1,2104.0,2.20527]
[1625236247000,4.41054,2104.1,2103.8,2.20527]
[1625236247148,7.08904,2104.1,2103.8,2.20527]
[1625236248000,7.08904,2104.1,2103.4,2.20527]
[1625236248100,7.08904,2104.1,2100.8,5.0]
[1625236248903,7.08904,2104.1,2101.9,17.207429]
[1625236249002,2.20527,2103.5,2103.4,2.20527]
[1625236249202,2.20527,2103.5,2103.1,2.20527]
[1625236249307,2.20527,2103.5,2100.8,5.0]
[1625236249958,2.20527,2103.5,2101.9,17.321536]
[1625236250410,3.2139,2105.1,2101.9,17.321536]
[1625236250526,3.5029,2106.1,2101.9,25.494736]
[1625236250710,3.5029,2106.1,2101.9,20.494736]
[1625236251015,2.20527,2104.0,2103.8,2.20527]
[1625236251115,2.20527,2104.0,2103.8,4.92617]
[1625236252269,2.20527,2104.0,2103.8,2.7209]
[1625236252369,2.20527,2104.0,2101.2,5.0]
[1625236252972,2.20527,2104.0,2103.4,2.20527]
[1625236253476,2.20527,2104.0,2102.8,2.9428]
[1625236253594,5.47807,2104.0,2100.9,5.0]
[1625236253678,5.47807,2104.0,2098.6,1.1]
[1625236253779,5.47807,2104.0,2097.1,1.9599]
[1625236254179,5.47807,2104.0,2100.7,17.385066]
[1625236254629,5.47807,2104.0,2100.8,5.0]
[1625236254878,5.47807,2104.0,2101.2,1.15]
[1625236255029,2.20527,2103.5,2103.0,2.20527]
[1625236255129,2.20527,2103.5,2103.0,4.96167]
[1625236255279,2.20527,2104.0,2103.0,4.96167]
[1625236255930,14.586,2106.8,2103.1,5.0]
[1625236256280,1.0,2107.1,2103.1,5.0]
[1625236256380,1.0,2107.1,2103.5,1.15]
[1625236256481,14.7274,2107.2,2103.5,4.6912]
[1625236256582,14.7274,2107.2,2103.6,5.0]
[1625236256783,14.7274,2107.2,2103.6,22.099119]
[1625236256983,2.20527,2106.4,2106.3,2.20527]
[1625236257083,14.7274,2107.2,2106.3,4.78447]
[1625236257185,1.1,2109.0,2106.3,4.78447]
[1625236257286,15.2036,2109.7,2106.3,4.78447]
[1625236257581,15.7391,2111.0,2106.4,59.2908]
[1625236257682,5.0,2109.8,2106.4,59.2908]
[1625236258134,17.293343,2109.7,2106.4,59.2908]
[1625236258285,5.0,2109.6,2106.4,59.2908]
[1625236258685,2.1,2110.7,2106.5,17.365871]
[1625236258788,1.0,2110.7,2106.5,22.365871]
[1625236258937,1.0,2110.7,2106.9,1.15]
[1625236259036,2.20527,2109.6,2109.0,2.20527]
[1625236259939,2.20527,2109.6,2108.8,2.20527]
[1625236260990,7.20527,2109.6,2104.9,1.1]
[1625236261140,2.20527,2108.1,2108.0,2.20527]
[1625236261440,1.0,2110.3,2108.0,2.20527]
[1625236261539,14.4289,2111.7,2108.0,2.20527]
[1625236261691,15.3088,2111.6,2108.0,2.20527]
[1625236261792,8.0,2110.8,2108.0,2.20527]
[1625236261894,15.3088,2111.6,2108.0,2.20527]
[1625236261991,5.0,2110.7,2108.0,2.20527]
[1625236262398,1.1,2110.4,2107.8,2.20527]
[1625236262499,1.1,2110.4,2106.6,2.8391]
[1625236262597,3.6937,2110.0,2106.6,2.8391]
[1625236262696,5.0,2109.9,2106.6,2.8391]
[1625236263045,2.20527,2107.1,2106.7,2.20527]
[1625236263296,2.3492,2107.5,2106.7,2.20527]
[1625236263399,3.7749,2108.1,2106.7,2.20527]
[1625236264003,3.7749,2108.1,2106.4,2.20527]
[1625236264702,3.7749,2108.1,2104.9,42.2134]
[1625236264905,3.7749,2108.1,2104.9,47.2134]
[1625236265006,2.20527,2106.2,2106.1,2.20527]
[1625236265954,3.4433,2107.1,2106.1,2.20527]
[1625236266056,3.7749,2108.1,2106.1,2.20527]
[1625236266155,8.0,2108.8,2106.1,2.20527]
[1625236266711,1.1,2109.4,2106.1,2.20527]
[1625236266857,3.6937,2110.0,2106.1,2.20527]
[1625236266959,5.0,2109.9,2106.1,2.20527]
[1625236267058,2.20527,2106.6,2106.1,2.20527]
[1625236267358,2.20527,2106.9,2106.1,2.20527]
[1625236268709,2.20527,2106.9,2106.2,17.091609]
[1625236268922,2.20527,2106.9,2106.1,2.20527]
[1625236269010,5.01187,2106.9,2106.1,2.20527]
[1625236270080,5.01187,2106.9,2104.9,42.2134]
[1625236270178,5.01187,2106.9,2103.3,3.6786]
[1625236270330,5.01187,2106.9,2103.2,15.103]
[1625236270685,5.01187,2106.9,2103.4,17.381148]
[1625236270981,5.01187,2106.9,2103.3,17.355235]
[1625236270982,5.01187,2106.9,2103.7,1.15]
[1625236271079,2.20527,2106.2,2105.8,2.20527]
[1625236271280,2.3046,2107.6,2105.8,2.20527]
[1625236271381,8.0,2109.5,2105.8,2.20527]
[1625236271482,20.6789,2108.5,2105.9,17.125858]
[1625236271583,5.0,2108.4,2105.9,17.125858]
[1625236271930,5.0,2108.4,2105.5,2.20527]
[1625236272032,8.0,2108.3,2103.9,3.5348]
[1625236272132,5.0,2108.2,2103.0,1.1]
[1625236272236,5.0,2108.2,2103.1,1.0]
[1625236272332,5.0,2108.2,2103.3,5.0]
[1625236272582,1.0,2108.3,2103.3,5.0]
[1625236272682,1.0,2108.3,2103.8,17.363678]
[1625236272786,15.6789,2108.5,2103.9,5.0]
[1625236272983,16.6789,2108.5,2105.5,40.7981]
[1625236273086,2.20527,2106.3,2106.2,2.20527]
[1625236273183,3.5463,2107.1,2106.2,2.20527]
[1625236273437,3.5463,2107.1,2106.3,17.13205]
[1625236273685,3.5463,2107.1,2105.5,45.7981]
[1625236273836,3.5463,2107.1,2105.5,40.7981]
[1625236274334,3.5463,2107.1,2105.6,17.096182]
[1625236274485,2.3591,2107.6,2105.6,17.096182]
[1625236274587,2.3591,2107.6,2105.6,22.096182]
[1625236274787,15.6789,2108.5,2105.6,22.096182]
[1625236274989,15.6789,2108.5,2106.1,1.15]
[1625236275139,2.20527,2107.6,2107.4,2.20527]
[1625236275241,2.20527,2107.6,2107.4,5.25497]
[1625236275489,2.20527,2107.6,2107.5,17.075684]
[1625236275989,1.05,2110.0,2107.5,17.075684]
[1625236276087,14.5015,2110.5,2107.5,22.075684]
[1625236276336,14.6758,2112.3,2107.5,22.075684]
[1625236276439,14.6758,2112.3,2108.0,1.15]
[1625236276540,5.0,2112.2,2108.0,3.821]
[1625236276689,14.6758,2112.3,2108.0,3.821]
[1625236276690,0.36535028,2112.1,2108.9,40.6962]
[1625236276793,0.36535028,2112.1,2108.9,44.315]
[1625236276989,0.36535028,2112.1,2109.0,17.132226]
[1625236277138,2.20527,2109.8,2109.7,2.20527]
[1625236277289,2.20527,2109.8,2109.7,5.04457]
[1625236277390,0.36844908,2112.2,2109.7,5.04457]
[1625236277491,0.36844908,2112.2,2109.8,17.282941]
[1625236277738,0.36844908,2112.2,2109.7,5.04457]
[1625236278040,0.36844908,2112.2,2109.8,17.205959]
[1625236278140,0.36844908,2112.2,2109.8,22.205959]
[1625236278340,14.6758,2112.3,2109.8,22.205959]
[1625236278441,14.6758,2112.3,2110.2,1.15]
[1625236278540,14.6758,2112.3,2110.2,4.0638]
[1625236278640,14.6758,2112.3,2110.3,5.0]
[1625236278790,0.9395,2116.2,2110.3,5.0]
[1625236278791,14.1913,2115.9,2110.3,5.0]
[1625236278941,12.4813,2115.9,2110.3,22.287771]
[1625236279096,12.4813,2115.9,2110.4,8.0]
[1625236279199,2.20527,2115.7,2115.5,2.20527]
[1625236279297,2.20527,2115.7,2114.7,3.5782]
[1625236279496,2.20527,2115.7,2114.7,2.45701473]
[1625236279900,2.15947,2115.7,2115.2,1.15]
[1625236280248,2.15947,2115.7,2115.3,17.056014]
[1625236280348,1.05660346,2119.3,2115.3,17.056014]
[1625236280597,0.3692573,2119.2,2115.3,17.056014]
[1625236280799,0.3692573,2119.2,2115.4,5.0]
[1625236280898,0.3692573,2119.2,2115.8,1.15]
[1625236281001,0.3692573,2119.2,2115.8,4.496]
[1625236281099,0.3692573,2119.2,2115.9,5.0]
[1625236281200,0.3692573,2119.2,2118.3,2.20527]
[1625236281554,0.3692573,2119.2,2118.4,17.11267]
[1625236281656,0.3692573,2119.2,2118.4,14.9074]
[1625236281850,1.05660346,2119.3,2118.4,14.9074]
[1625236282258,0.37236434,2119.2,2118.4,14.9074]
[1625236282354,0.37236434,2119.2,2116.9,53.4711]
[1625236282954,0.37236434,2119.2,2116.4,1.15]
[1625236283106,0.37236434,2119.2,2117.0,17.210873]
[1625236283405,0.37236434,2119.2,2115.9,2.20527]
[1625236283555,0.37236434,2119.2,2113.8,2.6919]
[1625236284022,0.37236434,2119.2,2114.3,1.15]
[1625236284434,0.37236434,2119.2,2114.4,17.11098]
[1625236285035,17.273815,2119.1,2111.9,2.5928]
[1625236285137,17.273815,2119.1,2113.3,2.20527]
[1625236285138,2.20527,2113.7,2113.3,2.20527]
[1625236285237,5.34387,2113.7,2113.3,2.20527]
[1625236285386,3.1386,2113.7,2113.3,2.20527]
[1625236285788,3.1386,2113.7,2113.4,17.205489]
[1625236286088,3.1386,2113.7,2113.3,2.20527]
[1625236286543,3.4843,2114.8,2113.3,2.20527]
[1625236287138,4.41054,2113.4,2112.9,2.20527]
[1625236287289,6.92564,2113.4,2112.9,2.20527]
[1625236287639,6.92564,2113.4,2112.7,2.20527]
[1625236288344,6.92564,2113.4,2112.8,17.295036]
[1625236288641,6.92564,2113.4,2112.7,2.20527]
[1625236288992,6.92564,2113.4,2112.8,17.157399]
[1625236289193,6.92564,2113.4,2113.3,2.20527]
[1625236289292,6.92564,2113.4,2112.8,17.157399]
[1625236289595,6.92564,2113.4,2113.3,17.175067]
[1625236289796,6.92564,2113.4,2112.7,2.20527]
[1625236289994,6.92564,2113.4,2112.8,17.221988]
[1625236290197,4.72037,2113.4,2112.8,17.221988]
[1625236290796,2.20527,2113.4,2112.8,17.221988]
[1625236290899,3.4843,2114.8,2112.8,17.221988]
[1625236291147,2.20527,2114.9,2114.7,2.20527]
[1625236291250,2.20527,2114.9,2112.8,17.221988]
[1625236291348,4.67847,2114.9,2112.8,17.221988]
[1625236291549,2.50217,2114.9,2112.2,17.062316]
[1625236291648,2.4732,2114.9,2112.2,17.062316]
[1625236291750,2.4732,2114.9,2112.3,5.0]
[1625236292000,2.4732,2114.9,2112.7,1.15]
[1625236292099,2.4732,2114.9,2112.7,4.1415]
[1625236292201,2.4732,2114.9,2112.8,5.0]
[1625236292551,2.9577,2117.0,2112.8,5.0]
[1625236292650,2.9577,2117.0,2112.9,17.260232]
[1625236292749,14.4258,2118.6,2113.3,1.15]
[1625236292851,14.4258,2118.6,2113.3,3.904]
[1625236292951,14.4258,2118.6,2113.4,5.0]
[1625236293154,2.20527,2116.0,2115.5,2.20527]
[1625236293804,2.20527,2116.0,1908.9,23.884]
[1625236293906,5.87887,2116.0,2111.7,60.11667922]
[1625236294104,5.87887,2116.0,2113.9,1.15]
[1625236294206,5.87887,2116.0,2113.9,4.6942]
[1625236294509,5.87887,2116.0,2114.0,17.077989]
[1625236295204,2.20527,2115.3,2115.2,2.20527]
[1625236295305,5.53567,2115.3,2115.2,2.20527]
[1625236295908,5.53567,2115.3,2111.7,60.11667922]
[1625236296661,5.53567,2115.3,2111.8,17.214044]
[1625236296862,5.53567,2115.3,2112.2,1.15]
[1625236297210,2.20527,2113.4,2113.3,2.20527]
[1625236297312,2.4396,2113.4,2113.3,2.20527]
[1625236297812,1.31945585,2113.4,2113.3,2.20527]
[1625236298367,1.31945585,2113.4,2113.1,2.20527]
[1625236298462,1.31945585,2113.4,2111.7,1.00837922]
[1625236299121,1.31945585,2113.4,2111.8,17.252699]
[1625236299269,3.3304,2115.3,2112.7,2.20527]